Cogmind - Beta 14 @@@ ROGUE MODE // 2024.08.16 @ 18:06:15 Player: dorusv Result: Destroyed by H-55 Commando with Gauss Rifle Performance ------------- Evolutions (2) 1000 Regions Visited (3) 600 Robots Destroyed (41) 205 Value Destroyed (1151) 1151 Prototype IDs (1) 20 Alien Tech Used (0) 0 Bonus (0) 0 TOTAL SCORE: 2976 Bonus ------- None Cogmind --------- Core Integrity 0/550 Matter 177/300 Energy 100/100 System Corruption 0% Temperature Cool (79) Movement Core (50) Location -8/Materials Parts ------- > --- POWER (1) -------- (None) > --- PROPULSION (2) --- (None) > --- UTILITY (4) ------ Improved Signal Interpreter > --- WEAPON (4) ------- Katana > --- INVENTORY (5) ---- Light Ion Engine Light Ion Engine Aluminum Leg Advanced Terrain Scan Processor Light Assault Rifle Peak State ------------ > --- POWER ------------ Cooled Deuterium Engine > --- PROPULSION ------- Armored Huge Wheel > --- UTILITY ---------- Small Storage Unit Improved Signal Interpreter Heavy Armor Plating > --- WEAPON ----------- Particle Gun Mini Grenade Launcher Heavy Flail > --- INVENTORY -------- Light Ion Engine Light Ion Engine Armored Treads Aluminum Leg Compact Matter Pod Advanced Terrain Scan Processor Light Assault Rifle [Rating: 31] Favorites ----------- Power Ion Engine Engine Ion Engine Propulsion Aluminum Leg Treads Armored Treads Leg Aluminum Leg Wheel Armored Huge Wheel Utility Small Storage Unit Device Seismic Detector Storage Small Storage Unit Processor Improved Signal Interpreter Protection Light Armor Plating Weapon Light Assault Rifle Energy Gun Particle Gun Energy Cannon Beam Cannon Ballistic Gun Light Assault Rifle Launcher Mini Grenade Launcher Impact Weapon Hammer Slashing Weapon Katana Build | -11 -10 -9 -8 ------- Run | Yrd Mat Mat Mat Slots Evolved 4 | . . 2 2 Power . | . . . . Propulsion . | . . . . Utility 2 | . . 2 . Weapon 2 | . . . 2 Parts Attached 34 | 8 4 1 21 Power 7 | 1 1 . 5 Engine 7 | 1 1 . 5 Core . | . . . . Reactor . | . . . . Propulsion 8 | 3 1 . 4 Treads 1 | . . . 1 Leg 6 | 3 1 . 2 Wheel 1 | . . . 1 Hover . | . . . . Flight . | . . . . Utility 8 | 2 . 1 5 Device 3 | 1 . . 2 Storage 2 | 1 . . 1 Processor 1 | . . . 1 Hackware . | . . . . Protection 2 | . . 1 1 Artifact . | . . . . Weapon 11 | 2 2 . 7 Energy Gun 3 | 1 . . 2 Energy Cannon 1 | . 1 . . Ballistic Gun 2 | 1 . . 1 Ballistic Cannon . | . . . . Launcher 2 | . 1 . 1 Special Weapon . | . . . . Impact Weapon 2 | . . . 2 Slashing Weapon 1 | . . . 1 Piercing Weapon . | . . . . Special Melee Weapon . | . . . . Unidentified Prototypes 1 | . . . 1 Corrupted Parts 1 | 1 . . . System Corruption 1 | 1 . . . Parts Lost 18 | . 1 . 17 Power 2 | . . . 2 Propulsion 3 | . . . 3 Utility 6 | . . . 6 Weapon 7 | . 1 . 6 Highest Loss Streak 9 | . 1 . 9 To Critical Strikes . | . . . . Average Slot Usage (%) 84 | . 94 79 82 Engine 10 | . 14 11 8 Leg 13 | . 28 22 6 Wheel 2 | . . . 3 Device 12 | . 14 11 12 Storage 10 | . 14 11 9 Processor 3 | . . . 4 Protection 2 | . . 2 3 Energy Cannon 4 | . 4 11 2 Ballistic Gun 13 | . 14 11 13 Launcher 4 | . 4 . 6 Impact Weapon 4 | . . . 7 Peak Build Rating 31 | 6 7 8 31 Average Rating 13 | 4 6 7 18 On Entrance 5 | . 6 7 8 Naked Turns . | . . . . Heaviest Build 38 | 13 15 18 38 Greatest Support 28 | 20 20 20 28 Greatest Overweight (x) 6 | 4 . . 6 Average Overweight (x) . | . . . . Largest Inventory Capacity 8 | 8 8 8 8 Average Capacity 7 | 7 8 8 7 Most Carried 8 | 1 3 5 8 Average Carried 4 | . 1 4 6 Final Capacity 8 | 8 8 8 5 Final Carried 5 | 1 3 5 5 Class Distribution -------------------- 56% | Mutant 12% | Scavenger-Skirmisher 8% | Tank 7% | Skirmisher 6% | Scavenger-Tank 5% | Scavenger-Mutant 3% | Gunner Dominant Class ---------------- Mutant | -10/Materials Mutant | -9/Materials Mutant | -8/Materials Resources | -11 -10 -9 -8 ----------- Run | Yrd Mat Mat Mat Matter Collected 679 | 276 106 55 242 Remotely . | . . . . Salvage Created 1220 | 13 311 398 498 Parts 73 | 3 15 29 26 Haulers Intercepted . | . . . . Recyclers Shooed 1 | . . 1 . Parts Field Recycled . | . . . . Retrieved Matter . | . . . . Parts Self-Destructed . | . . . . Prevented . | . . . . Kills | -11 -10 -9 -8 ------- Run | Yrd Mat Mat Mat Combat Hostiles Destroyed 29 | . 7 9 13 Melee 3 | . . . 3 Guns 6 | . 2 2 2 Cannons 9 | . 1 7 1 AOE 10 | . 4 . 6 Classes Destroyed 10 | 1 3 3 3 Worker 1 | . . . 1 Builder 2 | . . . 2 Tunneler 1 | 1 . . . Recycler 2 | . 1 . 1 Operator 1 | . . 1 . Watcher 5 | . 2 2 1 Swarmer 5 | . . 2 3 Grunt 22 | . 7 6 9 Brawler 1 | . . 1 . Sentry 1 | . . . 1 Best Kill Streak 8 | 1 8 7 7 Combat Bots Only 6 | . 4 6 3 Max Kills in Single Turn 3 | 1 3 1 3 Gunslinging . | . . . . Exploded 2 | . 2 . 2 Melee 1 | . . . 1 Uniques/NPCs Destroyed . | . . . . Combat | -11 -10 -9 -8 -------- Run | Yrd Mat Mat Mat Hostile Shots Fired 235 | . 28 42 165 Missed 50 | . 12 11 27 Damage Taken 2660 | . 185 338 2137 Core 621 | . 10 50 561 Absorbed by Shields . | . . . . Core Remaining (%) 94 | 100 96 87 . Volleys Fired 100 | 1 24 35 40 Largest 3 | 2 2 2 3 Hottest 130 | 60 80 80 130 Shots Fired 188 | 2 30 70 86 Gun 123 | 2 24 35 62 Cannon 45 | . 1 35 9 Launcher 20 | . 5 . 15 Special . | . . . . Kinetic 102 | 1 24 35 42 Thermal 65 | . 1 35 29 Explosive 20 | . 5 . 15 Electromagnetic 1 | 1 . . . Robot Hit Streak 10 | 1 5 10 9 Robot Miss Streak 6 | 1 3 6 4 Penetration Max . | . . . . Secondary Targets . | . . . . Shots Hit Robots 107 | 1 16 36 54 Core Hits 62 | 1 13 16 32 Critical Kills . | . . . . Critical Parts Destroyed . | . . . . Critical Strikes 2 | . . . 2 Smash 2 | . . . 2 Melee Attacks 12 | . . . 12 Impact 6 | . . . 6 Slashing 6 | . . . 6 Piercing . | . . . . Sneak Attacks . | . . . . Combat Hostiles . | . . . . Follow-up Attacks . | . . . . Damage Inflicted 2753 | 19 523 507 1704 Guns 693 | 15 111 156 411 Cannons 454 | . 17 351 86 Explosions 1288 | . 395 . 893 Melee 314 | . . . 314 Ramming 4 | 4 . . . Kinetic 486 | . 111 156 219 Thermal 646 | . 17 351 278 Explosive 1288 | . 395 . 893 Electromagnetic 15 | 15 . . . Impact 114 | . . . 114 Slashing 200 | . . . 200 Piercing . | . . . . Highest Corruption 1 | 1 1 . . Average Corruption 1 | 1 1 . . Corruption Purged . | . . . . Corruption Blocked . | . . . . Effects 3 | . 3 . . Message Errors 1 | . 1 . . Matter Fused 1 | . 1 . . Energy Discharges 1 | . 1 . . Overload Shots . | . . . . Overflow Damage 35 | . . 13 22 Projectiles 13 | . . 13 . Explosions 22 | . . . 22 Melee . | . . . . Knockbacks . | . . . . Impact . | . . . . Kinetic . | . . . . Secondary . | . . . . Self-Inflicted Damage 144 | . 13 . 131 Shots 6 | . 1 . 5 Rammed . | . . . . Targets Rammed 1 | 1 . . . Kicked 1 | 1 . . . Crushed . | . . . . Highest Temperature 463 | 20 46 222 463 Average Temperature 113 | 15 16 87 150 Received Heat Transfer 1110 | . 96 96 918 Siege Activations . | . . . . Robots Corrupted 1 | . . . 1 Combat Hostiles 1 | . . . 1 Parts Fried . | . . . . Impact Corruptions 1 | . . . 1 Robots Melted . | . . . . Combat Hostiles . | . . . . Parts Melted . | . . . . Heat Transferred 1406 | . 37 740 629 Parts Sabotaged . | . . . . Parts Stolen . | . . . . Parts Stripped . | . . . . Power Chain Reactions . | . . . . Alert | -11 -10 -9 -8 ------- Run | Yrd Mat Mat Mat Peak Influence 388 | 5 235 388 359 Initial 163 | . 3 98 163 Average 186 | 3 120 222 220 Maximum Alert Level 1 | . 1 1 1 Low Security (%) 60 | 100 61 54 55 Level 1 39 | . 38 45 44 Level 2 . | . . . . Level 3 . | . . . . Level 4 . | . . . . Level 5 . | . . . . High Security . | . . . . Max Security . | . . . . Squads Dispatched 11 | . 3 3 5 Investigation 7 | . 3 2 2 Extermination . | . . . . Reinforcement 4 | . . 1 3 Assault . | . . . . Garrison . | . . . . Intercept . | . . . . Searches Triggered . | . . . . Construction Impeded 2 | . . 1 1 Haulers Reinforced . | . . . . Active Scanning Responses . | . . . . Cargo Convoy Interrupts . | . . . . Stealth | -11 -10 -9 -8 --------- Run | Yrd Mat Mat Mat Distress Signals 3 | . . 1 2 Communications Jammed . | . . . . Distress Signals . | . . . . Times Spotted 49 | . 14 15 20 Peak Tracking Total 7 | . 7 4 7 Tactical Retreats . | . . . . Traps | -11 -10 -9 -8 ------- Run | Yrd Mat Mat Mat Traps Triggered 2 | . 2 . . Indirectly . | . . . . Trap Hack Attempts . | . . . . Triggered . | . . . . Disarmed . | . . . . Reprogrammed . | . . . . Reused . | . . . . Traps Extracted . | . . . . Installed . | . . . . Triggered . | . . . . Machines | -11 -10 -9 -8 ---------- Run | Yrd Mat Mat Mat Machines Disabled 2 | . 1 1 . Max in Single Turn 1 | . 1 1 . Machines Repaired . | . . . . Machines Dismantled . | . . . . Machines Sabotaged . | . . . . Overloaded Fab Kills . | . . . . Hacking | -11 -10 -9 -8 --------- Run | Yrd Mat Mat Mat Machines Accessed 6 | . 1 2 3 Terminals 6 | . 1 2 3 Fabricators . | . . . . Repair Stations . | . . . . Recycling Units . | . . . . Scanalyzers . | . . . . Garrison Access . | . . . . Total Hacks 23 | . 3 7 13 Successful 7 | . 1 2 4 Failed 16 | . 2 5 9 Catastrophic 7 | . 1 3 3 Database Lockouts . | . . . . Manual 14 | . 2 3 9 Terminals 23 | . 3 7 13 Fabricators . | . . . . Repair Stations . | . . . . Recycling Units . | . . . . Scanalyzers . | . . . . Garrison Access . | . . . . Terminal Hacks 7 | . 1 2 4 Patrol Status 1 | . . . 1 Zone Layout 6 | . 1 2 3 Fabricator Hacks . | . . . . Repair Station Hacks . | . . . . Recycling Unit Hacks . | . . . . Scanalyzer . | . . . . Garrison Access Hacks . | . . . . Unauthorized Hacks . | . . . . Terminals . | . . . . Fabricators . | . . . . Repair Stations . | . . . . Recycling Units . | . . . . Scanalyzers . | . . . . Garrison Access . | . . . . Data Cores Recovered 1 | . . 1 . Used 1 | . . 1 . Hacking Detections 6 | . 1 2 3 Full Trace Events 6 | . 1 2 3 Feedback Events . | . . . . Feedback Blocked . | . . . . Robot Schematics Acquired . | . . . . Robots Built . | . . . . Authchips . | . . . . Time . | . . . . Total Robot Build Rating . | . . . . Part Schematics Acquired . | . . . . Parts Built . | . . . . Authchips . | . . . . Time . | . . . . Total Part Build Rating . | . . . . Parts Repaired . | . . . . Time . | . . . . Parts Recycled . | . . . . Recycled Matter . | . . . . Retrieved Matter . | . . . . Retrieved Components . | . . . . Parts Scanalyzed . | . . . . Part Schematics Acquired . | . . . . Parts Damaged . | . . . . Bothacking | -11 -10 -9 -8 ------------ Run | Yrd Mat Mat Mat Used RIF Installer . | . . . . Robots Hacked . | . . . . Non-combat . | . . . . Combat . | . . . . Robot Hacks Applied . | . . . . Relay Couplers Released . | . . . . Fabnet Peak Effective % . | . . . . Robots Rewired . | . . . . Allies Hacked . | . . . . Hacks Repelled . | . . . . Allies | -11 -10 -9 -8 -------- Run | Yrd Mat Mat Mat Total Allies . | . . . . Largest Group . | . . . . Highest-Rated Group . | . . . . Highest-Rated Ally . | . . . . Total Orders . | . . . . Ally Attacks . | . . . . Total Damage . | . . . . Kills . | . . . . Allies Corrupted . | . . . . Allies Melted . | . . . . Intel | -11 -10 -9 -8 ------- Run | Yrd Mat Mat Mat Robot Analysis Total . | . . . . Derelict Logs Recovered . | . . . . Drone Launches . | . . . . Drone Recoveries . | . . . . Exploration | -11 -10 -9 -8 ------------- Run | Yrd Mat Mat Mat Turns Passed 1386 | 122 212 266 786 Spaces Moved 798 | 74 131 138 455 Core 42 | 22 . . 20 Treads 34 | . . . 34 Legs 518 | 52 131 138 197 Wheels 204 | . . . 204 Hover . | . . . . Flight . | . . . . Fastest Speed 50 | 50 120 120 50 Average Speed 129 | 141 120 120 132 Slowest Speed 350 | 250 120 120 350 Overloaded Moves . | . . . . Propulsion Burnouts . | . . . . Robots Hopped . | . . . . Cave-ins Triggered . | . . . . Exploration Rate (%) 19 | 5 22 18 34 Regions Visited 3 Branch Regions . Pre-discovered Areas . | . . . . Known Exits Taken . | . . . . Unknown Exits Taken 3 | 1 1 1 . Scrap Searched . | . . . . Spaces Dug . | . . . . Terrain Destroyed 145 | . 28 . 117 Melee . | . . . . Projectile . | . . . . AOE 145 | . 28 . 117 Terrain Rammed . | . . . . Walls Destroyed . | . . . . Machines Disabled . | . . . . Actions | -11 -10 -9 -8 --------- Run | Yrd Mat Mat Mat Total 965 | 84 158 175 548 Wait 6 | . . . 6 Move 795 | 73 130 137 455 Hop . | . . . . Pick Up 4 | 1 . 2 1 Fast Attach 28 | 8 2 1 17 Attach 2 | . . . 2 Detach 7 | . . . 7 Swap 4 | . 2 . 2 Drop 6 | . . . 6 Fire 100 | 1 24 35 40 Melee 12 | . . . 12 Ram . | . . . . Kick 1 | 1 . . . Crush . | . . . . Escape Stasis . | . . . . Rewire . | . . . . Trap . | . . . . Miscellaneous . | . . . . Route ------- -11/Scrapyard -10/Materials -9/Materials -8/Materials (discovered 1 exit: *Sto) History --------- Turn | Location | Event 30 | -11/Scrapyard | Discovered new exit (range 16) 123 | -11/Scrapyard | Entered Materials 302 | -10/Materials | Discovered new exit (range 16) 313 | -10/Materials | Build established: Mutant 335 | -10/Materials | Entered another Materials area 335 | -9/Materials | Evolved 2 slots: Utility x2 476 | -9/Materials | Discovered new exit (range 15) 601 | -9/Materials | Entered another Materials area 601 | -8/Materials | Evolved 2 slots: Weapon x2 852 | -8/Materials | Lost 4 parts (2n1u1w) 932 | -8/Materials | Discovered new exit (range 14) 1014 | -8/Materials | Identified exit to Storage 1366 | -8/Materials | Core integrity fell below 50% 1380 | -8/Materials | Core integrity fell below 20% 1387 | -8/Materials | Destroyed by H-55 Commando with Gauss Rifle Last Messages --------------- 01370_ R-06 Scavenger collects Melee Analysis Suite. 01371_ Slug penetrates Wall. 01371_ Acquired Imp. Ion Engine. 01372_ Critical hit (Burn: +37). 01372_ G-47 Trooper destroyed. 01373_ K-01 Serf collects debris. 01374_ Penetrated by Slug. 01377_ Imp. Ion Engine destroyed. 01377_ K-01 Serf collects debris. 01379_ Sml. Storage Unit destroyed. 01381_ K-01 Serf collects debris. 01381_ Slug penetrates G-47 Trooper. 01382_ G-47 Trooper destroyed. 01384_ Hvy. Flail destroyed. 01385_ K-01 Serf collects debris. 01385_ Acquired 51 matter. 01385_ Critical hit (Burn: +37). 01385_ G-47 Trooper destroyed. 01386_ Acquired 50 matter. Map ----- +----------------------------------------------------+ | ?????????????????????????????????? | | ?????????????????????????????????? | | ?????# #????# ?????????????? | | ?????### ###????# ?????????????? | | ######## #??????# ?????????????? | | # ## #??????# ?????????????? | | # ## #??????# ?????????????? | | # ## ##?????# ?????????????? | | # # #?????# ?????????????? | | # + #?????# ?????????????? | | # # !#?????# ?????????????? | | # # #?????####????????????? | | # ## ##?????# ????????????? | | ######## #####??# ????????????? | | # # #### #????????????? | | # "" # # ########?????? | | # "" # # #?????? | | # T" # # #! #?????? | | # "" # # #?????? | | # "" # !! + + "" #?????? | | #/ ! # # S"" #?????? | | # #####%"#| "" #?????? | | # " ########?????? | | # ! g #????????????? | | ##### ## # ##+########???????? | | ??# ! ==@= # #???????? | | ??# k==% # !#???????? | | ??# ! !! #### """ #???????? | | ??# h#### """"" #???????? | | ??# + # """"" #???????? | | ??# " #### """"" #???????? | | ??# """ #??# """ ######### | | ??# """ ! #??# + | | ??###########??################ | | ??????????????????????????######+# | | ??????????????????????????# | | ??????????????????????????# T ! | | ??????????????????????????# | | ??????????????????????????# ! | | ??????????????????????????# | | ??????????????????????????######## | | | | | | | | | | | | | | | | | | | +----------------------------------------------------+ Best States ------------- Heat Dissipation 31 Energy Generation 18 Energy Capacity 310 Matter Stores 300 Matter Capacity 450 Sight Range 16 Robot Scan Range 15 Terrain Scan Range 14 Terrain Scan Density 10 Armor Coverage 600 Evasion (%) 55 Recoil Reduction 1 Item Schematics ----------------- None Robot Schematics ------------------ None Fabricated ------------ Nothing Alien Tech Used ----------------- None Achievements -------------- Dynamic Key I Spy Oops Challenges ------------ None Game ------ Seed LightningEtherialTearclaws Manual? 0 Play Time 00:17:46 Cumulative 4.5 hours Start 2024.08.14 @ 22:20:06 End 2024.08.16 @ 18:06:15 Sessions 3 Manual Loads 0 Difficulty Rogue Special Mode None Game No. 19 Rogue 16 Adventurer 3 Explorer 0 Win Type - Total 0 Types 0/0/0/0/0/0/0/0/0 Lore% 8 Gallery% 11 Achievement% 13 Wizard Run 0 Options --------- Layout 1 ASCII 0 Keyboard 1 Movement Arrows Keybinds 0 Fullscreen 1 Font 28/Smallcaps Map View 50x43 Zoom Use 0% Tactical HUD 1 Map Filters NONE Filters NONE Steam 1 RUN: c0a41f0a-576d-40b0-965e-e23e706c48cf